fUSD/lending_fUSD_20250620
["ID","MTS","AMOUNT","RATE_DAILY","PERIOD"]
[366785644,1750451444741,-490.0,0.00026261,4]
[366785645,1750451444751,-490.0,0.00026261,4]
[366785646,1750451444761,-490.0,0.00026261,4]
[366785647,1750451444771,-490.0,0.00026261,4]
[366785648,1750451444781,-490.0,0.00026261,4]
[366785649,1750451444791,-517.37,0.00026261,4]
[366785650,1750451444801,-525.11005742,0.00026261,4]
[366785651,1750451444810,-570.36,0.00026261,4]
[366785652,1750451444820,-589.91470718,0.00026261,4]
[366785653,1750451444830,-490.0,0.00026261,4]
[366785654,1750451444840,-490.0,0.00026261,4]
[366785655,1750451444855,-490.0,0.00026261,4]
[366785656,1750451444864,-490.0,0.00026261,4]
[366785657,1750451444874,-490.0,0.00026261,4]
[366785658,1750451444884,-490.0,0.00026261,4]
[366785659,1750451444894,-490.0,0.00026261,4]
[366785660,1750451444903,-490.0,0.00026261,4]
[366785661,1750451444913,-490.0,0.00026261,4]
[366785662,1750451444924,-129.38975552,0.00026261,4]
[366785663,1750451445383,-360.61024448,0.00026261,4]
[366785664,1750451445394,-490.0,0.00026261,4]
[366785665,1750451445404,-490.0,0.00026261,4]
[366785666,1750451445414,-192.86935129,0.00026261,4]
[366785667,1750451445424,-490.0,0.00026261,4]
[366785668,1750451445434,-490.0,0.00026261,4]
[366785669,1750451445444,-490.0,0.00026261,4]
[366785670,1750451445454,-490.0,0.00026261,4]
[366785671,1750451445464,-490.0,0.00026261,4]
[366785672,1750451445474,-490.0,0.00026261,4]
[366785673,1750451445484,-490.0,0.00026261,4]
[366785674,1750451445494,-490.0,0.00026261,4]
[366785675,1750451445503,-490.0,0.00026261,4]
[366785676,1750451445513,-490.0,0.00026261,4]
[366785677,1750451445524,-490.0,0.00026261,4]
[366785678,1750451445534,-490.0,0.00026261,4]
[366785679,1750451445544,-490.0,0.00026261,4]
[366785680,1750451445554,-490.0,0.00026261,4]
[366785681,1750451445566,-490.0,0.00026261,4]
[366785682,1750451445576,-490.0,0.00026261,4]
[366785683,1750451445586,-299.61350734,0.00026261,4]
[366785687,1750451446499,-490.0,0.00026248,4]
[366785688,1750451446509,-350.0,0.00026254,2]
[366785689,1750451446518,-190.38649266,0.00026261,4]
[366785690,1750451446528,-490.0,0.00026261,4]
[366785691,1750451446538,-490.0,0.00026261,4]
[366785692,1750451446547,-490.0,0.00026261,4]
[366785693,1750451446557,-206.20061657,0.00026261,4]
[366785694,1750451446567,-490.0,0.00026261,4]
[366785695,1750451446576,-420.0,0.00026261,4]
[366785696,1750451446586,-490.0,0.00026261,4]
[366785697,1750451446595,-490.0,0.00026261,4]
[366785698,1750451446604,-490.0,0.00026261,4]
[366785699,1750451446615,-490.0,0.00026261,4]
[366785700,1750451446627,-490.0,0.00026261,4]
[366785701,1750451446637,-490.0,0.00026261,4]
[366785702,1750451446647,-263.34923166,0.00026261,4]
[366785703,1750451446656,-490.0,0.00026261,4]
[366785704,1750451446666,-867.62,0.00026261,4]
[366785705,1750451446677,-490.0,0.00026261,4]
[366785706,1750451446687,-490.0,0.00026261,4]
[366785707,1750451446696,-575.54138857,0.00026261,4]
[366785708,1750451446706,-490.0,0.00026261,4]
[366785709,1750451446930,-490.0,0.00026261,4]
[366785710,1750451446942,-490.0,0.00026261,4]
[366785711,1750451446952,-490.0,0.00026261,4]
[366785712,1750451446962,-490.0,0.00026261,4]
[366785713,1750451446972,-209.89324831,0.00026261,4]
[366785714,1750451446982,-490.0,0.00026261,4]
[366785715,1750451446991,-490.0,0.00026261,4]
[366785716,1750451447002,-490.0,0.00026261,4]
[366785717,1750451447012,-490.0,0.00026261,4]
[366785718,1750451447022,-490.0,0.00026261,4]
[366785719,1750451447032,-619.23439462,0.00026261,4]
[366785720,1750451447042,-490.0,0.00026261,4]
[366785721,1750451447052,-490.0,0.00026261,4]
[366785722,1750451447062,-490.0,0.00026261,4]
[366785723,1750451447072,-490.0,0.00026261,4]
[366785724,1750451447082,-490.0,0.00026261,4]
[366785725,1750451447091,-490.0,0.00026261,4]
[366785726,1750451447101,-490.0,0.00026261,4]
[366785727,1750451447111,-358.05185801,0.00026261,4]
[366785728,1750451447121,-171.03906341,0.00026261,4]
[366785729,1750451447132,-490.0,0.00026261,4]
[366785730,1750451447142,-490.0,0.00026261,4]
[366785731,1750451447152,-490.0,0.00026261,4]
[366785732,1750451447162,-492.6692494,0.00026261,4]
[366785733,1750451447171,-490.0,0.00026261,4]
[366785734,1750451447182,-490.0,0.00026261,4]
[366785735,1750451447193,-490.0,0.00026261,4]
[366785736,1750451447207,-490.0,0.00026261,4]
[366785737,1750451447218,-509.52321966,0.00026261,4]
[366785738,1750451447229,-490.0,0.00026261,4]
[366785739,1750451447239,-490.0,0.00026261,4]
[366785740,1750451447249,-520.87,0.00026261,4]
[366785741,1750451447261,-490.0,0.00026261,4]
[366785742,1750451447270,-490.0,0.00026261,4]
[366785743,1750451447280,-490.0,0.00026261,4]
[366785744,1750451447290,-490.0,0.00026261,4]
[366785745,1750451447300,-490.0,0.00026261,4]
[366785746,1750451447310,-490.0,0.00026261,4]
[366785747,1750451447320,-490.0,0.00026261,4]
[366785748,1750451447330,-490.0,0.00026261,4]
[366785749,1750451447341,-490.0,0.00026261,4]
[366785750,1750451447352,-490.0,0.00026261,4]
[366785751,1750451447363,-490.0,0.00026261,4]
[366785752,1750451447373,-490.0,0.00026261,4]
[366785753,1750451447384,-490.0,0.00026261,4]
[366785754,1750451447396,-490.0,0.00026261,4]
[366785755,1750451447406,-490.0,0.00026261,4]
[366785756,1750451447417,-490.0,0.00026261,4]
[366785757,1750451447425,-490.0,0.00026261,4]
[366785758,1750451447435,-490.0,0.00026261,4]
[366785759,1750451447444,-490.0,0.00026261,4]
[366785760,1750451447453,-490.0,0.00026261,4]
[366785761,1750451447463,-490.0,0.00026261,4]
[366785762,1750451447472,-490.0,0.00026261,4]
[366785763,1750451447482,-490.0,0.00026261,4]
[366785764,1750451447491,-490.0,0.00026261,4]
[366785765,1750451447501,-490.0,0.00026261,4]
[366785766,1750451447510,-490.0,0.00026261,4]
[366785767,1750451447519,-490.0,0.00026261,4]
[366785768,1750451447529,-490.0,0.00026261,4]
[366785769,1750451447538,-490.0,0.00026261,4]
[366785770,1750451447548,-490.0,0.00026261,4]
[366785771,1750451447557,-490.0,0.00026261,4]
[366785772,1750451447566,-490.0,0.00026261,4]
[366785773,1750451447575,-490.0,0.00026261,4]
[366785774,1750451447586,-490.0,0.00026261,4]
[366785775,1750451447595,-490.0,0.00026261,4]
[366785776,1750451447605,-420.0,0.00026261,4]
[366785777,1750451447614,-490.0,0.00026261,4]
[366785778,1750451447623,-490.0,0.00026261,4]
[366785779,1750451447634,-490.0,0.00026261,4]
[366785780,1750451447644,-490.0,0.00026261,4]
[366785781,1750451447652,-478.02399997,0.00026261,4]
[366785782,1750451447662,-490.0,0.00026261,4]
[366785783,1750451447672,-490.0,0.00026261,4]
[366785784,1750451447682,-490.0,0.00026261,4]
[366785785,1750451447691,-490.0,0.00026261,4]
[366785786,1750451447701,-490.0,0.00026261,4]
[366785787,1750451447710,-490.0,0.00026261,4]
[366785788,1750451447719,-490.0,0.00026261,4]
[366785789,1750451447729,-490.0,0.00026261,4]
[366785790,1750451447739,-490.0,0.00026261,4]
[366785791,1750451447750,-490.0,0.00026261,4]
[366785792,1750451447762,-650.14,0.00026261,4]
[366785793,1750451447772,-490.0,0.00026261,4]
[366785794,1750451447782,-490.0,0.00026261,4]
[366785795,1750451447791,-490.0,0.00026261,4]
[366785796,1750451447801,-490.0,0.00026261,4]
[366785797,1750451447812,-1000.0,0.00026261,7]
[366785798,1750451447822,-490.0,0.00026261,4]
[366785799,1750451447833,-490.0,0.00026261,4]
[366785800,1750451447846,-490.0,0.00026261,4]
[366785801,1750451447860,-490.0,0.00026261,4]
[366785802,1750451447870,-333.29353707,0.00026261,4]
[366785803,1750451447880,-490.0,0.00026261,4]
[366785804,1750451447890,-490.0,0.00026261,4]
[366785805,1750451447900,-490.0,0.00026261,4]
[366785806,1750451447909,-490.0,0.00026261,4]
[366785807,1750451447919,-490.0,0.00026261,4]
[366785808,1750451447929,-490.0,0.00026261,4]
[366785809,1750451447939,-490.0,0.00026261,4]
[366785810,1750451447948,-490.0,0.00026261,4]
[366785811,1750451447958,-490.0,0.00026261,4]
[366785812,1750451447968,-490.0,0.00026261,4]
[366785813,1750451447977,-490.0,0.00026261,4]
[366785814,1750451447987,-490.0,0.00026261,4]
[366785815,1750451447997,-490.0,0.00026261,4]
[366785816,1750451448007,-490.0,0.00026261,4]
[366785817,1750451448017,-1000.0,0.00026261,2]
[366785818,1750451448026,-490.0,0.00026261,4]
[366785819,1750451448036,-563.47,0.00026261,4]
[366785820,1750451448046,-490.0,0.00026261,4]
[366785821,1750451448055,-490.0,0.00026261,4]
[366785822,1750451448065,-490.0,0.00026261,4]
[366785823,1750451448075,-490.0,0.00026261,4]
[366785824,1750451448085,-490.0,0.00026261,4]
[366785825,1750451448095,-490.0,0.00026261,4]
[366785826,1750451448104,-490.0,0.00026261,4]
[366785827,1750451448114,-490.0,0.00026261,4]
[366785828,1750451448123,-490.0,0.00026261,4]
[366785829,1750451448133,-490.0,0.00026261,4]
[366785830,1750451448143,-514.48661474,0.00026261,4]
[366785831,1750451448152,-490.0,0.00026261,4]
[366785832,1750451448162,-961.55,0.00026261,4]
[366785833,1750451448172,-490.0,0.00026261,4]
[366785834,1750451448182,-490.0,0.00026261,4]
[366785835,1750451448192,-1177.84,0.00026261,4]
[366785836,1750451448201,-1177.84,0.00026261,4]
[366785837,1750451448211,-490.0,0.00026261,4]
[366785838,1750451448221,-423.78185825,0.00026261,4]
[366785839,1750451448231,-490.0,0.00026261,4]
[366785840,1750451448241,-869.9,0.00026261,4]
[366785841,1750451448251,-490.0,0.00026261,4]
[366785842,1750451448261,-490.0,0.00026261,4]
[366785843,1750451448271,-490.0,0.00026261,4]
[366785844,1750451448280,-490.0,0.00026261,4]
[366785845,1750451448290,-490.0,0.00026261,4]
[366785846,1750451448299,-807.16,0.00026261,4]
[366785847,1750451448308,-490.0,0.00026261,4]
[366785848,1750451448318,-490.0,0.00026261,4]
[366785849,1750451448327,-490.0,0.00026261,4]
[366785850,1750451448336,-490.0,0.00026261,4]
[366785851,1750451448346,-490.0,0.00026261,4]
[366785852,1750451448356,-323.61873155,0.00026261,4]
[366785853,1750451448365,-490.0,0.00026261,4]
[366785854,1750451448374,-490.0,0.00026261,4]
[366785855,1750451448384,-490.0,0.00026261,4]
[366785856,1750451448394,-490.0,0.00026261,4]
[366785857,1750451448403,-490.0,0.00026261,4]
[366785858,1750451448413,-490.0,0.00026261,4]
[366785859,1750451448422,-490.0,0.00026261,4]
[366785860,1750451448433,-490.0,0.00026261,4]
[366785861,1750451448442,-490.0,0.00026261,4]
[366785862,1750451448452,-401.67612229,0.00026261,4]
[366785863,1750451448462,-1296.63,0.00026261,4]
[366785864,1750451448471,-490.0,0.00026261,4]
[366785865,1750451448481,-319.78860071,0.00026261,4]
[366785866,1750451448491,-490.0,0.00026261,4]
[366785867,1750451448501,-490.0,0.00026261,4]
[366785868,1750451448510,-490.0,0.00026261,4]
[366785869,1750451448520,-490.0,0.00026261,4]
[366785870,1750451448529,-490.0,0.00026261,4]
[366785871,1750451448539,-490.0,0.00026261,4]
[366785872,1750451448548,-490.0,0.00026261,4]
[366785873,1750451448558,-490.0,0.00026261,4]
[366785874,1750451448568,-490.0,0.00026261,4]
[366785875,1750451448578,-620.18,0.00026261,4]
[366785876,1750451448587,-2009.69,0.00026261,4]
[366785877,1750451448597,-12278.78,0.00026261,4]
[366785878,1750451448606,-490.0,0.00026261,4]
[366785879,1750451448616,-3905.38,0.00026261,4]
[366785880,1750451448626,-365.18093238,0.00026261,4]
[366785881,1750451448635,-2598.84,0.00026261,4]
[366785882,1750451448645,-638.58186194,0.00026261,4]
[366785883,1750451448655,-298.67830662,0.00026261,4]
[366785884,1750451448666,-906.76,0.00026261,4]
[366785885,1750451448676,-501.88,0.00026261,4]
[366785886,1750451448687,-490.0,0.00026261,4]
[366785887,1750451448697,-490.0,0.00026261,4]
[366785888,1750451448707,-490.0,0.00026261,4]
[366785889,1750451448716,-490.0,0.00026261,4]
[366785890,1750451448725,-490.0,0.00026261,4]
[366785891,1750451448735,-1391.4,0.00026261,4]
[366785892,1750451448744,-490.0,0.00026261,4]
[366785893,1750451448753,-4345.12,0.00026261,4]
[366785894,1750451448762,-490.0,0.00026261,4]
[366785895,1750451448772,-490.0,0.00026261,4]
[366785896,1750451448783,-490.0,0.00026261,4]
[366785897,1750451448792,-400.26004902,0.00026261,4]
[366785898,1750451448802,-420.85204816,0.00026261,4]
[366785899,1750451448812,-490.0,0.00026261,4]
[366785900,1750451448822,-745.35,0.00026261,4]
[366785901,1750451448832,-247.0956032,0.00026261,4]
[366785902,1750451448842,-490.0,0.00026261,4]
[366785903,1750451448855,-490.0,0.00026261,4]
[366785904,1750451448865,-1103.65,0.00026261,4]
[366785905,1750451448875,-401.1103807,0.00026261,4]
[366785906,1750451448884,-490.0,0.00026261,4]
[366785907,1750451448894,-490.0,0.00026261,4]
[366785908,1750451448904,-784.99,0.00026261,4]
[366785909,1750451448914,-490.0,0.00026261,4]
[366785910,1750451448923,-490.0,0.00026261,4]
[366785911,1750451448936,-1638.8,0.00026261,4]
[366785912,1750451448947,-490.0,0.00026261,4]
[366785913,1750451448956,-490.0,0.00026261,4]
[366785914,1750451448967,-665.61,0.00026261,4]
[366785915,1750451448977,-490.0,0.00026261,4]
[366785916,1750451448986,-770.87,0.00026261,4]
[366785917,1750451448996,-400.0,0.00026261,4]
[366785918,1750451449005,-689.76,0.00026261,4]
[366785919,1750451449015,-490.0,0.00026261,4]
[366785920,1750451449024,-490.0,0.00026261,4]
[366785921,1750451449034,-1583.42,0.00026261,4]
[366785922,1750451449044,-490.0,0.00026261,4]
[366785923,1750451449055,-2594.79,0.00026261,4]
[366785924,1750451449065,-490.0,0.00026261,4]
[366785925,1750451449074,-490.0,0.00026261,4]
[366785926,1750451449084,-712.08,0.00026261,4]
[366785927,1750451449094,-2308.74,0.00026261,4]
[366785928,1750451449104,-490.0,0.00026261,4]
[366785929,1750451449114,-1433.9,0.00026261,4]
[366785930,1750451449124,-490.0,0.00026261,4]
[366785931,1750451449134,-404.46250388,0.00026261,4]
[366785932,1750451449144,-1184.95,0.00026261,4]
[366785933,1750451449154,-1184.95,0.00026261,4]
[366785934,1750451449164,-1000.0,0.00026261,4]
[366785935,1750451449174,-490.0,0.00026261,4]
[366785936,1750451449184,-453.26046644,0.00026261,4]
[366785937,1750451449194,-1942.97,0.00026261,4]
[366785938,1750451449203,-490.0,0.00026261,4]
[366785939,1750451449213,-490.0,0.00026261,4]
[366785940,1750451449223,-490.0,0.00026261,4]
[366785941,1750451449233,-423.17072912,0.00026261,4]
[366785942,1750451449242,-490.0,0.00026261,4]
[366785943,1750451449252,-574.73,0.00026261,4]
[366785944,1750451449262,-490.0,0.00026261,4]
[366785945,1750451449272,-490.0,0.00026261,4]
[366785946,1750451449282,-490.0,0.00026261,4]
[366785947,1750451449292,-490.0,0.00026261,4]
[366785948,1750451449302,-490.0,0.00026261,4]
[366785949,1750451449311,-490.0,0.00026261,4]
[366785950,1750451449322,-608.1,0.00026261,4]
[366785951,1750451449331,-564.54,0.00026261,4]
[366785952,1750451449341,-490.0,0.00026261,4]
[366785953,1750451449352,-826.6,0.00026261,4]
[366785954,1750451449362,-490.0,0.00026261,4]
[366785955,1750451449372,-490.0,0.00026261,4]
[366785956,1750451449382,-490.0,0.00026261,4]
[366785957,1750451449392,-490.0,0.00026261,4]
[366785958,1750451449402,-4032.12,0.00026261,4]
[366785959,1750451449412,-490.0,0.00026261,4]
[366785960,1750451449422,-807.16,0.00026263,4]
[366785961,1750451449431,-150.0,0.00026265,2]
[366785962,1750451449441,-500.0,0.00026265,2]
[366785963,1750451449450,-150.0,0.00026265,2]
[366785964,1750451449461,-500.0,0.00026265,2]
[366785965,1750451449471,-150.0,0.00026265,2]
[366785966,1750451449481,-202.79560054,0.00026265,2]
[366785967,1750451449491,-157.31173317,0.00026265,2]
[366785968,1750451449500,-150.0,0.00026265,2]
[366785969,1750451449510,-166.06865037,0.00026265,2]
[366785970,1750451449520,-500.0,0.00026265,2]
[366785971,1750451449530,-501.56272529,0.00026265,2]
[366785972,1750451449540,-150.0,0.00026265,2]
[366785973,1750451449550,-300.0,0.00026267,10]
[366785974,1750451449559,-300.0,0.00026268,10]
[366785975,1750451449569,-666.0,0.00026268,2]
[366785976,1750451449579,-300.0,0.00026268,10]
[366785977,1750451449589,-329.88171833,0.00026268,2]
[366785978,1750451449599,-300.0,0.00026268,10]
[366785979,1750451449608,-300.0,0.00026268,10]
[366785980,1750451449617,-300.0,0.00026268,10]
[366785981,1750451449627,-4460.54,0.00026268,4]
[366785982,1750451449637,-4460.54,0.00026268,4]
[366785983,1750451449647,-4460.54,0.00026268,4]
[366785984,1750451449657,-4460.54,0.00026268,4]
[366785985,1750451449667,-4460.54,0.00026268,4]
[366785986,1750451449678,-4460.54,0.00026268,4]
[366785987,1750451449688,-300.0,0.00026268,10]
[366785988,1750451449698,-9496.86816608,0.00026269,5]
[366785989,1750451449708,-61213.50276694,0.00026269,5]
[366785990,1750451449756,-5333.59999998,0.00026269,5]
[366785991,1750451449768,-20665.65727967,0.00026269,5]
[366785992,1750451450278,989.0,0.00023102,2]
[366785994,1750451552394,659.0,0.00023102,2]
[366785995,1750451758451,440.0,0.00023102,2]
[366785996,1750451769204,154.82,0.00013699,2]
[366785998,1750451891949,204.0,0.00022662,2]
[366786003,1750452419121,-204.0,0.00023218,2]
[366786004,1750452419144,-151.0,0.00024419,2]
[366786005,1750452419168,-59.76459073,0.00024419,2]
[366786014,1750452631993,-204.0,0.00023817,2]
[366786015,1750452632004,-156.587,0.00024419,2]
[366786016,1750452632015,-250.0,0.00024419,2]
[366786017,1750452632025,-240.23540927,0.00024419,2]
[366786018,1750452632035,-1200.0,0.00024651,2]
[366786019,1750452632046,-1552.47517665,0.00024652,2]
[366786020,1750452632152,-1315.8,0.00024652,2]
[366786021,1750452632164,-419.03227551,0.00024652,2]
[366786022,1750452632176,-10583.20670335,0.00024652,2]
[366786024,1750452632209,-2164.30819884,0.00024652,2]
[366786037,1750452638256,-560.416,0.00024652,2]
[366786038,1750452638268,-7014.36761669,0.00024652,2]
[366786039,1750452638400,-1147.6207184,0.00024652,2]
[366786044,1750452640040,-8503.88790286,0.00024652,2]
[366786045,1750452640051,-1883.77909715,0.00024652,2]
[366786046,1750452640062,-3121.35208495,0.00024652,2]
[366786047,1750452640095,-998.88706875,0.00024652,2]
[366786048,1750452640258,-280318.98341575,0.00024652,2]
[366786049,1750452640269,-165119.4364395,0.00024652,2]
[366786050,1750452640278,-13955.2573715,0.00024669,2]
[366786051,1750452640290,-163.2,0.00024686,2]
[366786052,1750452640301,-156.35,0.0002473,2]
[366786053,1750452640311,-200.0,0.00024739,7]
[366786054,1750452640320,-526.77,0.00024751,2]
[366786055,1750452640330,-250.0,0.00024779,2]
[366786056,1750452640340,-215.74,0.00024781,120]
[366786057,1750452640351,-23900.0,0.00024793,2]
[366786058,1750452640360,-154.82,0.00024907,2]
[366786059,1750452640371,-610.0,0.0002502,2]
[366786060,1750452640381,-473.08,0.00025114,2]
[366786061,1750452640392,-200.0,0.00025171,2]
[366786062,1750452640402,-300.0,0.00025187,2]
[366786063,1750452640412,-300.0,0.00025187,2]
[366786064,1750452640422,-151.0,0.00025188,2]
[366786065,1750452640432,-151.0,0.00025188,2]
[366786066,1750452640442,-151.0,0.00025188,2]
[366786067,1750452640452,-207.4,0.00025188,2]
[366786068,1750452640463,-500.0,0.00025188,2]
[366786069,1750452640472,-151.0,0.00025188,2]
[366786070,1750452640483,-500.0,0.00025188,2]
[366786071,1750452640494,-151.0,0.00025188,2]
[366786072,1750452640503,-151.0,0.00025188,2]
[366786073,1750452640514,-500.0,0.00025188,2]
[366786074,1750452640524,-151.0,0.00025188,2]
[366786075,1750452640534,-668.65185757,0.00025188,2]
[366786077,1750452640544,-151.0,0.00025188,2]
[366786079,1750452640555,-500.0,0.00025188,2]
[366786081,1750452640566,-151.0,0.00025188,2]
[366786083,1750452640575,-151.0,0.00025188,2]
[366786085,1750452640585,-500.0,0.00025188,2]
[366786087,1750452640594,-151.0,0.00025188,2]
[366786089,1750452640604,-500.0,0.00025188,2]
[366786090,1750452640614,-151.0,0.00025188,2]
[366786092,1750452640623,-225.0,0.00025188,2]
[366786093,1750452640633,-500.0,0.00025188,2]
[366786094,1750452640643,-500.0,0.00025188,2]
[366786095,1750452640653,-151.0,0.00025188,2]
[366786096,1750452640661,-500.0,0.00025188,2]
[366786097,1750452640671,-500.0,0.00025188,2]
[366786098,1750452640680,-151.0,0.00025188,2]
[366786099,1750452640689,-500.0,0.00025188,2]
[366786100,1750452640698,-500.0,0.00025188,2]
[366786101,1750452640708,-151.0,0.00025188,2]
[366786102,1750452640718,-500.0,0.00025188,2]
[366786103,1750452640727,-500.0,0.00025188,2]
[366786104,1750452640737,-500.0,0.00025188,2]
[366786105,1750452640747,-151.0,0.00025188,2]
[366786106,1750452640756,-500.0,0.00025188,2]
[366786107,1750452640766,-500.0,0.00025188,2]
[366786108,1750452640776,-151.0,0.00025188,2]
[366786109,1750452640786,-500.0,0.00025188,2]
[366786110,1750452640796,-500.0,0.00025188,2]
[366786111,1750452640807,-500.0,0.00025188,2]
[366786112,1750452640816,-151.0,0.00025188,2]
[366786113,1750452640826,-500.0,0.00025188,2]
[366786114,1750452640836,-500.0,0.00025188,2]
[366786115,1750452640846,-151.0,0.00025188,2]
[366786116,1750452640856,-151.0,0.00025188,2]
[366786117,1750452640866,-500.0,0.00025188,2]
[366786118,1750452640876,-500.0,0.00025188,2]
[366786119,1750452640886,-151.0,0.00025188,2]
[366786120,1750452640895,-500.0,0.00025188,2]
[366786121,1750452640905,-500.0,0.00025188,2]
[366786122,1750452640915,-151.0,0.00025188,2]
[366786123,1750452640925,-507.56178389,0.00025188,2]
[366786124,1750452640936,-500.0,0.00025188,2]
[366786125,1750452640947,-500.0,0.00025188,2]
[366786126,1750452640957,-500.0,0.00025188,2]
[366786127,1750452640967,-500.0,0.00025188,2]
[366786128,1750452640978,-500.0,0.00025188,2]
[366786129,1750452640988,-500.0,0.00025188,2]
[366786130,1750452640998,-500.0,0.00025188,2]
[366786131,1750452641009,-500.0,0.00025188,2]
[366786132,1750452641019,-500.0,0.00025188,2]
[366786133,1750452641029,-500.0,0.00025188,2]
[366786134,1750452641039,-500.0,0.00025188,2]
[366786135,1750452641049,-500.0,0.00025188,2]
[366786136,1750452641060,-500.0,0.00025188,2]
[366786137,1750452641070,-500.0,0.00025188,2]
[366786138,1750452641081,-500.0,0.00025188,2]
[366786139,1750452641091,-500.0,0.00025188,2]
[366786140,1750452641101,-500.0,0.00025188,2]
[366786141,1750452641111,-500.0,0.00025188,2]
[366786142,1750452641121,-500.0,0.00025188,2]
[366786143,1750452641130,-500.0,0.00025188,2]
[366786144,1750452641140,-1957.856,0.00025188,2]
[366786145,1750452641149,-500.0,0.00025188,2]
[366786146,1750452641159,-500.0,0.00025188,2]
[366786147,1750452641169,-500.0,0.00025188,2]
[366786148,1750452641179,-500.0,0.00025188,2]
[366786149,1750452641188,-500.0,0.00025188,2]
[366786150,1750452641197,-500.0,0.00025188,2]
[366786151,1750452641208,-500.0,0.00025188,2]
[366786152,1750452641219,-500.0,0.00025188,2]
[366786153,1750452641229,-500.0,0.00025188,2]
[366786154,1750452641239,-500.0,0.00025188,2]
[366786155,1750452641248,-500.0,0.00025188,2]
[366786156,1750452641259,-500.0,0.00025188,2]
[366786157,1750452641269,-500.0,0.00025188,2]
[366786158,1750452641279,-1657.84,0.0002522,2]
[366786159,1750452641290,-2030.296672,0.00025243,2]
[366786160,1750452641301,-1000.0,0.00025244,2]
[366786161,1750452641312,-2105.41764886,0.00025298,2]
[366786162,1750452641322,-2183.31810187,0.00025353,2]
[366786163,1750452641332,-326.96,0.00025361,2]
[366786164,1750452641342,-244.34,0.00025361,2]
[366786165,1750452641351,-300.67,0.00025361,2]
[366786166,1750452641362,-2264.10087164,0.00025408,2]
[366786167,1750452641371,-204.0,0.00025462,4]
[366786168,1750452641381,-2347.87260389,0.00025463,2]
[366786169,1750452641391,-2434.74389024,0.00025518,2]
[366786170,1750452641401,-2524.82941417,0.00025573,2]
[366786171,1750452641411,-300.0,0.000256,9]
[366786172,1750452641421,-2618.2481025,0.00025628,2]
[366786173,1750452641431,-167.1,0.00025643,2]
[366786174,1750452641440,-412.10241744,0.00025667,2]
[366786175,1750452641450,-2715.12328229,0.00025683,2]
[366786176,1750452641460,-700.0,0.000257,9]
[366786177,1750452641470,-2815.58284374,0.00025738,2]
[366786178,1750452641480,-2919.75940895,0.00025793,2]
[366786179,1750452641490,-1100.0,0.000258,9]
[366786180,1750452641500,-170.2,0.00025805,2]
[366786181,1750452641510,-500.0,0.00025808,2]
[366786182,1750452641520,-3027.79050709,0.00025848,2]
[366786183,1750452641530,-1400.0,0.000259,9]
[366786184,1750452641540,-2054.77503357,0.000259,14]
[366786185,1750452641550,-3139.81875585,0.00025903,2]